bitfinex/quotes_ETHUSD_20250814
["timestamp","ask_amount","ask_price","bid_price","bid_amount"]
[1755182796174,1e-08,4680.0,4679.9,7.12969779]
[1755182796344,1e-08,4680.0,4679.9,8.09501648]
[1755182796845,1e-08,4680.0,4679.9,8.09581648]
[1755182797251,1e-08,4680.0,4679.9,11.09581648]
[1755182797861,1e-08,4680.0,4679.9,11.74822409]
[1755182798591,1e-08,4681.0,4680.9,2.1363413]
[1755182798784,1e-08,4681.0,4680.9,15.46387543]
[1755182799192,1e-08,4681.5,4681.4,2.13611312]
[1755182799394,1e-08,4681.5,4681.4,10.12601312]
[1755182799603,1e-08,4681.5,4681.4,10.23321312]
[1755182800398,1e-08,4681.5,4681.4,10.78321312]
[1755182800593,1e-08,4681.5,4681.4,12.99508868]
[1755182801268,0.002,4683.8,4683.7,2.13506415]
[1755182801482,0.002,4683.8,4683.7,11.22246415]
[1755182802099,0.002,4683.8,4683.7,11.11606415]
[1755182802299,0.002,4683.8,4683.7,7.25706415]
[1755182802505,0.002,4683.8,4683.7,12.05528424]
[1755182803565,0.002,4683.8,4683.7,8.19628424]
[1755182803768,0.002,4683.8,4683.7,12.05328424]
[1755182804147,0.002,4685.0,4684.2,2.13483625]
[1755182804461,0.002,4685.0,4684.2,5.99083625]
[1755182804659,0.002,4685.0,4684.2,7.01691258]
[1755182805255,0.002,4685.0,4684.2,3.16091258]
[1755182805578,0.4641,4684.9,4684.2,7.01691258]
[1755182805760,1e-08,4684.3,4684.2,10.01691258]
[1755182805952,1e-08,4684.3,4684.2,10.67741258]
[1755182806365,1e-08,4684.3,4684.2,6.16091258]
[1755182806569,1e-08,4684.3,4684.2,10.01591258]
[1755182806765,1e-08,4684.3,4684.2,10.01491258]
[1755182806968,1e-08,4684.3,4684.2,10.01571258]
[1755182807467,1e-08,4684.3,4684.2,6.16171258]
[1755182807881,1e-08,4684.3,4684.2,10.01471258]
[1755182808055,1e-08,4684.3,4684.2,8.98863625]
[1755182808492,1e-08,4684.3,4684.2,5.98863625]
[1755182808948,1e-08,4684.3,4684.2,7.11653625]
[1755182809058,1e-08,4684.3,4684.2,10.11653625]
[1755182809395,1e-08,4684.3,4684.2,8.98863625]
[1755182809561,1e-08,4684.3,4684.2,10.31449258]
[1755182809959,1e-08,4685.3,4685.2,2.1343806]
[1755182810265,1e-08,4686.0,4685.9,2.13406175]
[1755182810457,1e-08,4686.0,4685.9,8.98506175]
[1755182810690,1e-08,4686.0,4685.9,5.13406175]
[1755182810858,1e-08,4686.0,4685.9,5.86088099]
[1755182811053,1e-08,4686.0,4685.9,5.98406175]
[1755182811257,1e-08,4686.0,4685.9,2.13406175]
[1755182811567,1.09090001,4686.0,4685.9,5.98406175]
[1755182811768,1.09090001,4686.0,4685.9,2.13406175]
[1755182812098,1.09090001,4686.0,4685.9,5.98406175]
[1755182812394,0.45460001,4686.0,4685.9,5.98406175]
[1755182812559,1.09090001,4686.0,4685.9,5.98306175]
[1755182813310,0.45460001,4686.0,4685.9,6.08946175]
[1755182813507,0.45460001,4686.0,4685.9,6.08846175]
[1755182813957,1e-08,4686.0,4685.9,6.08846175]
[1755182814159,1e-08,4686.0,4685.9,6.91072243]
[1755182814763,1e-08,4686.0,4685.9,9.91072243]
[1755182814996,1e-08,4686.0,4685.9,10.97652243]
[1755182815595,1e-08,4686.5,4686.4,2.13383407]
[1755182815795,1e-08,4686.5,4686.4,11.20323407]
[1755182815997,1e-08,4686.5,4686.4,12.83694778]
[1755182816700,1e-08,4686.5,4686.4,11.20223407]
[1755182816878,1e-08,4686.5,4686.4,7.35723407]
[1755182817077,1e-08,4686.5,4686.4,11.20303407]
[1755182817279,1.09090001,4686.5,4686.4,2.24103407]
[1755182817500,1.09090001,4686.5,4686.4,6.08603407]
[1755182817794,1.09090001,4686.5,4686.4,2.24103407]
[1755182818369,1.09090001,4686.5,4686.4,6.08503407]
[1755182818564,1e-08,4686.5,4686.4,6.08503407]
[1755182818763,1e-08,4686.5,4686.4,3.9512]
[1755182818995,0.45460001,4686.5,4686.4,0.1072]
[1755182819199,1.09090001,4686.5,4686.4,0.1072]
[1755182819695,1e-08,4686.5,4686.4,3.8438]
[1755182819904,1e-08,4686.5,4686.4,3.9502]
[1755182820286,0.45460001,4686.5,4686.4,0.1072]
[1755182820472,0.45460001,4686.5,4686.4,3.9492]
[1755182820684,1e-08,4686.5,4686.4,3.9492]
[1755182821291,1e-08,4686.5,4686.4,0.42544328]
[1755182821610,0.4546,4690.9,4687.0,0.00200001]
[1755182821781,0.6363,4690.8,4687.4,3.55]
[1755182822105,0.6363,4690.8,4689.9,0.1064]
[1755182822270,0.6363,4690.8,4689.9,3.9474]
[1755182823024,1.0919,4690.0,4689.9,3.9474]
[1755182823223,1.0919,4690.0,4689.0,5.116]
[1755182823371,0.001,4690.0,4689.1,7.53276718]
[1755182823566,0.001,4690.0,4689.1,7.3516]
[1755182823797,0.001,4690.0,4689.1,7.991089]
[1755182824204,0.001,4690.0,4689.2,0.55]
[1755182824408,0.001,4690.0,4689.2,0.991]
[1755182824631,0.001,4690.0,4689.3,1.4098089]
[1755182824933,0.001,4690.0,4689.4,3.838]
[1755182825410,0.001,4690.0,4689.5,3.0]
[1755182825603,0.001,4690.0,4689.6,1.08712378]
[1755182825777,0.001,4690.0,4689.7,1.6158]
[1755182825978,0.001,4690.0,4689.9,0.55]
[1755182826177,0.001,4690.0,4689.9,1.63712241]
[1755182826707,0.001,4690.0,4689.9,3.85832241]
[1755182826907,0.001,4690.0,4689.9,4.9028]
[1755182827309,0.001,4690.0,4689.9,4.9036]
[1755182827509,0.001,4690.0,4689.9,5.47871124]
[1755182827741,0.001,4690.0,4689.9,6.02871124]
[1755182827914,0.001,4690.0,4689.9,9.02871124]
[1755182828087,0.19621656,4696.2,4690.0,3.0]
[1755182828286,0.4546,4693.1,4690.2,0.55]
[1755182828621,0.6363,4693.0,4690.4,3.55]
[1755182828813,0.4546,4692.9,4690.5,0.02131968]
[1755182829015,0.4546,4692.9,4690.6,1.1748]
[1755182829315,0.6363,4692.8,4690.8,3.0]
[1755182829724,0.4546,4692.7,4690.8,3.0]
[1755182829875,0.4546,4692.7,4689.9,1.64171124]
[1755182830080,0.6363,4692.6,4690.1,3.0]
[1755182830295,0.4546,4692.5,4690.2,0.02132105]
[1755182830517,1.1863,4692.4,4689.9,0.0008]
[1755182830722,3.55,4691.9,4690.3,3.834]
[1755182830889,1.0909,4691.8,4689.9,0.0008]
[1755182831094,1.80499,4691.7,4689.0,5.112]
[1755182831302,0.55,4691.5,4689.0,5.112]
[1755182831525,0.55,4691.3,4689.0,5.112]
[1755182831689,1.0909,4691.2,4689.0,5.112]
[1755182831890,0.002,4691.0,4689.0,5.112]
[1755182832117,1.20019,4690.9,4689.1,3.832]
[1755182832303,0.10929,4690.9,4689.1,3.832]
[1755182832505,1.0909,4690.8,4689.1,3.832]
[1755182832705,1.0909,4690.8,4689.2,3.0]
[1755182832912,1.0909,4690.8,4689.3,0.02132514]
[1755182833106,0.4546,4690.8,4689.1,3.832]
[1755182833307,0.4546,4690.8,4690.7,0.1064]
[1755182833540,1.0901,4690.8,4690.7,3.9374]
[1755182833703,0.002,4691.0,4690.7,3.9374]
[1755182834104,0.002,4691.0,4690.7,4.33114]
[1755182835333,0.002,4691.0,4690.7,3.9374]
[1755182835706,0.002,4691.0,4690.9,0.1064]
[1755182835913,0.002,4691.0,4690.7,3.831]
[1755182836113,0.002,4691.0,4690.7,4.8968]
[1755182836437,0.002,4691.0,4690.8,1.0658]
[1755182836606,0.002,4691.0,4690.9,0.48968]
[1755182837204,0.002,4691.0,4690.9,1.57679787]
[1755182837434,0.002,4691.0,4690.9,0.48968]
[1755182837742,0.002,4691.0,4690.9,4.47442929]
[1755182837944,0.002,4691.0,4690.9,5.54022929]
[1755182839639,0.002,4691.0,4690.9,8.54022929]
[1755182839942,0.002,4691.0,4690.9,7.47442929]
[1755182840128,0.002,4691.0,4690.9,7.91542929]
[1755182840450,0.002,4691.0,4690.9,7.47442929]
[1755182840823,0.002,4691.0,4690.9,6.98474929]
[1755182842414,0.002,4691.0,4690.9,7.59964929]
[1755182842643,0.002,4691.0,4690.9,6.98474929]
[1755182842844,0.002,4691.0,4690.9,9.11653636]
[1755182843254,0.002,4691.0,4690.9,10.17093636]
[1755182843451,0.002,4691.0,4690.9,11.40121554]
[1755182843846,0.002,4691.0,4690.9,6.51881554]
[1755182844154,0.002,4691.0,4690.9,10.34281554]
[1755182845217,0.002,4691.5,4691.4,2.13155987]
[1755182845554,0.002,4691.5,4691.4,11.06455987]
[1755182845742,0.002,4691.5,4691.4,12.59735282]
[1755182845925,0.002,4691.5,4691.4,8.88075282]
[1755182846131,0.002,4691.5,4691.4,12.70275282]
[1755182846457,0.4595,4691.5,4691.4,11.16995987]
[1755182846625,0.002,4691.5,4691.4,11.16995987]
[1755182847817,0.002,4691.5,4691.4,11.17075987]
[1755182848453,0.638,4692.7,4692.5,2.1310602]
[1755182848653,1.0955,4692.7,4692.6,5.95201478]
[1755182848851,1.0955,4692.7,4692.6,6.05841478]
[1755182849052,0.4575,4692.7,4692.6,6.05841478]
[1755182849256,1.0955,4692.7,4692.6,6.05841478]
[1755182850224,1.0955,4692.7,4692.6,3.9264]
[1755182850422,1.0955,4692.7,4691.4,5.1108]
[1755182850735,1.20505,4692.6,4691.5,3.819]
[1755182850941,1.29356963,4692.5,4691.5,3.819]
[1755182851138,0.10955,4692.6,4691.5,3.819]
[1755182851139,0.002,4692.0,4691.5,3.819]
[1755182851455,0.002,4692.0,4691.4,5.1108]
[1755182851658,1.0955,4691.9,4691.4,7.24235577]
[1755182851856,0.4575,4691.9,4691.5,3.819]
[1755182852055,1.0955,4691.8,4691.5,3.819]
[1755182852257,1.0955,4691.7,4691.5,3.819]
[1755182852459,0.4575,4691.6,4691.5,3.819]
[1755182852632,1.0955,4691.6,4691.5,3.819]
[1755182853056,1.0955,4691.6,4691.5,3.818]
[1755182853437,1.29412836,4691.6,4691.5,3.818]
[1755182853848,3.42559736,4691.6,4691.5,3.817]
[1755182854066,1.29412836,4691.6,4691.5,3.817]
[1755182855374,1.2942059,4691.6,4691.5,3.817]
[1755182855577,1.2934059,4691.6,4691.5,3.817]
[1755182856146,1.2934059,4691.6,4691.5,3.816]
[1755182856590,3.4248749,4691.6,4691.5,3.816]
[1755182856766,2.13151444,4691.5,4691.4,5.1108]
[1755182856950,2.96822034,4691.5,4691.4,3.8168]
[1755182857669,3.42572034,4691.5,4691.4,3.8168]
[1755182858379,3.42566276,4691.5,4691.4,3.8168]
[1755182858749,3.97566276,4691.5,4691.4,3.8168]
[1755182859069,4.64195856,4691.5,4691.4,3.8168]
[1755182859465,3.42566276,4691.5,4691.4,3.8168]
[1755182860568,2.43656276,4691.5,4691.4,3.8168]
[1755182860769,3.53206276,4691.5,4691.4,3.8168]
[1755182860976,3.53206276,4691.5,4691.4,3.8138]
[1755182861153,3.53201074,4691.5,4691.4,0.0008]
[1755182861349,4.09835651,4691.5,4691.4,0.0008]
[1755182861579,4.09835651,4691.5,4691.4,3.8138]
[1755182862271,3.89976021,4691.5,4691.4,3.8138]
[1755182862475,3.33341444,4691.5,4691.4,3.8138]
[1755182863188,0.002,4692.0,4691.4,6.05175987]
[1755182863375,0.002,4692.0,4691.9,2.13133272]
[1755182863579,0.002,4692.0,4691.9,2.23853272]
[1755182864489,0.002,4692.0,4691.9,6.04953272]
[1755182864795,0.002,4692.0,4691.9,6.86762597]
[1755182865383,1e-08,4692.0,4691.9,12.92562597]
[1755182865561,0.4575,4694.4,4691.9,10.79429325]
[1755182865758,2.13016683,4694.5,4693.6,2.13056076]
[1755182865968,2.13016136,4694.5,4693.6,3.81]
[1755182866168,0.4575,4694.9,4692.9,1.0544]
[1755182866369,2.58769964,4694.4,4692.4,2.13110561]
[1755182866570,0.4575,4693.9,4693.1,2.13078575]
[1755182866771,0.4575,4693.6,4693.2,3.809]
[1755182866991,1.0955,4693.5,4693.2,3.809]
[1755182867310,1.0955,4693.4,4693.3,3.809]
[1755182867459,3.22615155,4693.4,4693.3,3.809]
[1755182867659,1.0955,4693.4,4693.3,3.809]
[1755182868112,1.0955,4693.4,4691.9,5.92889325]
[1755182868294,0.4575,4693.3,4692.0,3.809]
[1755182868672,2.13078775,4693.1,4691.9,5.1108]
[1755182869001,2.13128729,4692.0,4691.9,3.8088]
[1755182869168,6.22678729,4692.0,4691.9,3.8088]
[1755182869361,6.77678729,4692.0,4691.9,3.8088]
[1755182869589,4.11758585,4692.0,4691.9,3.8088]
[1755182869788,2.13178754,4690.9,4690.0,2.13215188]
[1755182869995,0.4575,4690.8,4689.5,5.11]
[1755182870296,3.0,4691.5,4689.5,5.11]
[1755182870479,2.13133659,4691.9,4689.5,5.11]
[1755182870480,1.0955,4691.4,4689.5,5.11]
[1755182870683,1.75505,4691.3,4689.5,5.11]
[1755182871000,0.4575,4691.2,4690.3,3.807]
[1755182871213,2.13185107,4690.8,4690.3,3.807]
[1755182871412,1.0955,4690.7,4690.4,3.806]
[1755182871564,2.13196887,4690.5,4690.4,3.806]
[1755182871900,3.21446887,4690.5,4690.4,3.806]
[1755182872101,0.4389,4691.2,4690.4,3.806]
[1755182872319,0.558105,4691.2,4690.4,3.806]
[1755182872489,2.13175659,4691.0,4690.4,3.806]
[1755182872794,2.13190663,4690.7,4690.5,0.001]
[1755182873002,0.119205,4691.2,4690.5,0.001]
[1755182873363,2.13182977,4690.9,4690.5,0.001]
[1755182873564,0.4389,4690.8,4690.5,0.001]
[1755182873763,0.4389,4690.8,4690.5,0.0018]
[1755182874012,2.13188442,4690.7,4690.5,0.0018]
[1755182874176,3.21442342,4690.6,4690.5,0.0018]
[1755182874495,3.21442342,4690.6,4690.5,3.8078]
[1755182875378,2.67722342,4690.6,4690.5,3.8078]
[1755182875573,3.32082342,4690.6,4690.5,3.8078]
[1755182875964,2.67722342,4690.6,4690.5,3.8078]
[1755182876502,3.32082342,4690.6,4690.5,3.8058]
[1755182877366,3.86608981,4690.6,4690.5,3.8058]
[1755182877800,3.86528981,4690.6,4690.5,3.8058]
[1755182878365,6.86528981,4690.6,4690.5,3.8058]
[1755182879803,3.1064,4690.6,4690.5,0.0018]
[1755182880117,0.1064,4690.7,4690.5,3.8048]
[1755182880283,2.13174566,4691.0,4690.5,3.8048]
[1755182880471,0.1064,4690.9,4690.5,3.8048]
[1755182880816,0.4389,4691.2,4690.6,3.802]
[1755182880993,2.23823883,4690.8,4690.5,0.0018]
[1755182881172,2.57077797,4690.7,4690.6,3.802]
[1755182881372,2.57077797,4690.7,4690.5,0.0018]
[1755182881373,7.51437797,4690.7,4690.5,0.0018]
[1755182881669,6.87077797,4690.7,4690.6,3.801]
[1755182881871,4.3,4690.7,4690.6,3.801]
[1755182882879,4.3,4690.7,4690.6,3.8018]
[1755182883086,6.87077797,4690.7,4690.6,3.8018]
[1755182883290,10.78167056,4690.7,4690.6,3.8018]
[1755182883495,11.42527056,4690.7,4690.6,3.8018]
[1755182883807,10.51437797,4690.7,4690.6,3.8018]
[1755182884194,8.3825,4690.7,4690.6,3.8018]
[1755182884589,10.51437797,4690.7,4690.6,0.0008]
[1755182884800,10.51437797,4690.7,4690.6,3.7998]
[1755182886176,11.06437797,4690.7,4690.6,0.0008]
[1755182886778,12.39463525,4690.7,4690.6,0.0008]
[1755182886978,5.68192342,4690.6,4690.5,0.001]
[1755182887204,3.76442342,4690.6,4690.5,0.001]
[1755182887605,6.76442342,4690.6,4690.5,0.001]
[1755182887804,5.68205978,4690.3,4690.2,0.001]
[1755182888035,0.55,4689.4,4689.2,0.001]
[1755182888241,6.76501444,4689.3,4689.2,0.001]
[1755182888610,4.78829494,4689.3,4687.7,0.1064]
[1755182888811,2.13333333,4687.5,4687.4,3.797]
[1755182889036,1.7389,4687.5,4687.2,3.797]
[1755182889243,2.13338393,4687.4,4687.2,3.797]
[1755182889446,0.55,4687.2,4686.1,0.1064]
[1755182889645,0.1064,4686.3,4686.1,3.796]
[1755182890152,2.24028995,4686.3,4686.1,3.796]
[1755182890347,0.4389,4686.2,4686.1,3.796]
[1755182890547,0.1064,4686.3,4685.6,5.112]
[1755182890747,3.0,4687.6,4685.6,5.112]
[1755182890748,0.1064,4685.9,4685.6,5.112]
[1755182890933,0.1064,4685.9,4685.7,3.796]
[1755182891134,0.55,4686.9,4685.7,3.796]
[1755182891309,0.1064,4686.2,4685.7,3.796]
[1755182891510,0.1064,4686.2,4685.7,5.93014957]
[1755182891747,3.0,4686.8,4685.6,5.112]
[1755182891748,0.55,4686.5,4685.8,3.796]
[1755182891955,2.13401621,4686.0,4685.8,3.796]
[1755182892137,0.1064,4685.9,4685.8,3.795]
[1755182892327,2.24046175,4685.9,4685.8,3.795]
[1755182892528,2.24046175,4685.9,4685.6,5.112]
[1755182892529,2.68415284,4685.7,4685.6,5.112]
[1755182892755,3.76665284,4685.7,4685.6,8.907]
[1755182892958,1.6325,4685.7,4685.6,3.7958]
[1755182893137,3.29694284,4685.7,4685.6,3.7958]
[1755182893339,2.85804284,4685.7,4685.6,3.7958]
[1755182893640,0.1064,4685.9,4685.6,3.7958]
[1755182893835,0.1064,4685.9,4685.6,0.0008]
[1755182894050,0.1064,4685.7,4685.6,0.0008]
[1755182894552,0.1064,4685.7,4685.4,3.795]
[1755182895623,0.1064,4685.7,4685.4,4.8752]
[1755182895874,0.6436,4687.6,4685.5,1.0802]
[1755182896023,0.1064,4686.2,4685.4,3.795]
[1755182896227,0.4389,4686.1,4685.1,0.001]
[1755182896461,2.1343806,4685.2,4685.1,0.001]
[1755182896777,6.8732806,4685.2,4685.1,0.001]
[1755182897062,8.12718223,4685.2,4685.1,0.001]
[1755182897470,3.0,4685.1,4684.6,0.001]
[1755182897776,5.6846084,4684.7,4684.6,1e-08]
[1755182897923,5.6846084,4684.7,4684.1,1e-08]
[1755182897924,2.68483625,4684.2,4684.1,1e-08]
[1755182898128,6.76733625,4684.2,4684.1,1e-08]
[1755182898371,7.55527705,4684.2,4684.1,1e-08]
[1755182898691,2.68524651,4683.3,4683.2,0.001]
[1755182898862,6.76774651,4683.3,4683.2,0.001]
[1755182900375,3.55,4683.3,4683.2,0.001]
[1755182900530,1.2268408,4684.2,4683.2,0.001]
[1755182900724,0.55,4684.1,4683.2,0.001]
[1755182901024,2.68492056,4684.1,4683.2,0.001]
[1755182901273,0.4389,4684.2,4683.2,0.001]
[1755182901274,0.55,4683.7,4683.2,0.001]
[1755182901474,5.68524651,4683.3,4683.2,0.001]
[1755182901656,6.72944651,4683.3,4683.2,0.001]
[1755182901961,7.61590839,4683.3,4683.2,0.001]
[1755182902661,7.61590839,4683.3,4683.2,1e-08]
[1755182903082,7.72207889,4683.3,4683.2,0.00080001]
[1755182904473,7.61590839,4683.3,4683.2,0.00080001]
[1755182904680,5.13524651,4683.3,4683.2,0.00080001]
[1755182905086,0.4419,4683.9,4683.2,0.00080001]
[1755182905285,2.1349928,4683.9,4683.2,0.00080001]
[1755182905465,0.10405231,4684.2,4683.2,0.00080001]
[1755182905664,6.36761166,4684.5,4683.2,0.00080001]
[1755182905861,2.13479068,4684.3,4683.2,0.00080001]
[1755182906155,0.69699117,4684.4,4683.3,1.0609]
[1755182906482,0.15954272,4685.2,4683.4,0.477752]
[1755182906709,0.19569761,4686.1,4683.4,1.082252]
[1755182906857,0.1064,4685.2,4684.4,0.1064]
[1755182907159,0.15617695,4685.5,4683.2,0.00080001]
[1755182907355,0.1064,4684.6,4683.9,1.0609]
[1755182907556,0.16375091,4685.5,4683.9,1.0609]
[1755182907757,0.4419,4686.3,4684.7,2.13457404]
[1755182907967,0.4419,4686.3,4684.8,3.791]
[1755182908173,0.1064,4685.0,4684.8,3.791]
[1755182908576,0.1064,4685.0,4684.5,3.79]
[1755182908770,2.13475637,4684.4,4684.2,3.79]
[1755182908969,0.1064,4684.3,4684.2,3.79]
[1755182909214,2.24119068,4684.3,4684.2,3.79]
[1755182909372,0.1064,4684.3,4684.2,3.79]
[1755182909568,2.13492428,4684.1,4683.2,0.00080001]
[1755182909779,0.1064,4683.7,4683.3,3.789]
[1755182910195,0.1064,4683.7,4683.2,0.00080001]
[1755182910558,0.1064,4683.7,4683.3,4.8499]
[1755182910826,0.1064,4683.7,4683.4,3.789]
[1755182911033,0.1064,4683.7,4683.3,1.0609]
[1755182911208,0.1064,4683.7,4683.5,3.789]
[1755182911597,0.1064,4683.7,4683.6,1.0609]
[1755182911778,0.1064,4684.3,4683.6,1.1673]
[1755182912179,0.1064,4684.3,4683.7,3.788]
[1755182912418,0.55,4684.2,4683.7,3.788]
[1755182912740,0.55,4684.2,4683.6,0.1064]
[1755182912894,0.55,4685.0,4683.8,3.788]
[1755182913078,3.0,4684.4,4683.8,3.788]
[1755182913275,0.1064,4683.9,4683.8,3.788]
[1755182913523,0.1064,4683.9,4683.8,3.7888]
[1755182913680,0.1056,4683.9,4683.8,3.7888]
[1755182914031,2.24057299,4683.9,4683.8,3.7888]
[1755182914206,0.1056,4683.9,4683.8,3.7888]
[1755182914582,0.1056,4683.9,4683.8,3.7878]
[1755182914583,2.79057299,4683.9,4683.8,3.7878]
[1755182914774,3.28311997,4683.9,4683.8,0.0008]
[1755182914979,0.6556,4683.9,4683.8,0.0008]
[1755182915381,0.1056,4683.9,4683.8,0.0008]
[1755182915837,0.1056,4683.9,4683.7,3.786]
[1755182917122,0.1056,4683.9,4683.8,3.786]
[1755182917593,0.3033767,4683.9,4683.8,3.786]
[1755182917796,0.1056,4683.9,4683.8,3.786]
[1755182918244,0.30369264,4683.9,4683.8,3.786]
[1755182919224,2.43866563,4683.9,4683.8,3.786]
[1755182919423,2.1350257,4683.8,4683.3,0.001]
[1755182919627,0.19809264,4683.7,4683.4,3.784]
[1755182919824,0.19809264,4683.6,4683.4,3.784]
[1755182920024,0.19809264,4683.5,4683.4,3.784]
[1755182920351,0.19809264,4683.5,4683.4,5.91920092]
[1755182920552,0.19809264,4683.5,4683.4,6.52370092]
[1755182920758,0.19809264,4683.5,4683.4,4.8449]
[1755182920925,0.19809264,4683.5,4683.4,3.784]
[1755182921662,0.85449264,4683.5,4683.4,3.782]
[1755182923790,0.85449264,4683.5,4683.4,3.7828]
[1755182924964,0.85509888,4683.5,4683.4,3.7828]
[1755182926597,0.19869888,4683.5,4683.4,3.7828]
[1755182926892,0.64059888,4683.5,4683.4,0.0008]
[1755182927093,0.87298877,4683.5,4683.4,3.7798]
[1755182927316,0.74869888,4683.5,4683.4,3.7798]
[1755182927460,0.74869888,4683.5,4683.4,0.0008]
[1755182927661,2.13520092,4683.4,4683.3,0.001]
[1755182928022,4.12706442,4683.4,4683.3,3.779]
[1755182928200,7.12706442,4683.4,4683.3,3.779]
[1755182928496,8.2826351,4683.4,4683.3,3.779]
[1755182928701,8.2826351,4683.4,4683.2,1e-08]
[1755182928702,5.68524651,4683.3,4683.2,1e-08]
[1755182928902,7.58575759,4683.3,4683.2,1e-08]
[1755182929794,5.6854745,4682.8,4682.7,1e-08]
[1755182929975,7.127338,4682.8,4682.7,3.77700001]
[1755182930180,7.127338,4682.8,4682.7,1e-08]
[1755182930181,7.80104703,4682.8,4682.7,1e-08]
[1755182930489,7.80104703,4682.8,4682.7,3.77700001]
[1755182930907,7.801306,4682.8,4682.7,1e-08]
[1755182931117,6.757106,4682.8,4682.7,3.77600001]
[1755182931409,7.12759697,4682.8,4682.7,3.77600001]
[1755182932210,7.12759697,4682.8,4682.7,1e-08]
[1755182932411,7.12759697,4682.8,4682.7,3.77500001]
[1755182932584,7.12759697,4682.8,4682.7,1e-08]
[1755182932779,8.05389544,4682.8,4682.7,3.77500001]
[1755182933339,7.00969544,4682.8,4682.7,3.77500001]
[1755182933713,5.53339697,4682.8,4682.7,3.77500001]
[1755182933908,5.53339697,4682.8,4682.7,0.00080001]
[1755182933909,0.39792247,4682.8,4682.7,0.00080001]
[1755182934139,0.19895785,4682.8,4682.7,4.80730001]
[1755182934444,2.13524651,4683.3,4682.7,4.80730001]
[1755182934653,2.13524651,4683.3,4682.7,1.03330001]
[1755182934819,5.59197299,4683.9,4682.7,0.00080001]
[1755182935002,2.13519828,4683.5,4682.8,3.774]
[1755182935204,0.81483287,4683.8,4682.8,3.774]
[1755182935205,2.33405679,4683.4,4682.8,3.774]
[1755182935432,0.19884557,4683.3,4682.8,3.774]
[1755182935627,0.55,4683.3,4682.7,0.00080001]
[1755182935834,2.68525076,4683.3,4682.9,3.773]
[1755182936029,0.002,4684.7,4683.0,1.0325]
[1755182936251,2.13505445,4683.8,4683.0,1.0325]
[1755182936461,0.19887338,4683.7,4683.0,1.0325]
[1755182936649,2.13533874,4683.1,4682.7,0.00080001]
[1755182936806,0.55,4683.0,4682.8,3.772]
[1755182937007,0.55,4683.3,4682.8,3.772]
[1755182937320,0.1064,4682.9,4682.7,0.00080001]
[1755182937843,0.1064,4682.9,4682.8,3.772]
[1755182938017,0.1056,4682.9,4682.7,0.00080001]
[1755182938236,0.1056,4682.9,4682.8,3.771]
[1755182940479,5.6854745,4682.8,4682.7,0.00080001]
[1755182940624,6.90942003,4682.8,4682.7,0.00080001]
[1755182940827,4.97302892,4682.8,4682.7,0.00080001]
[1755182941072,5.88452003,4682.8,4682.7,0.00080001]
[1755182941563,11.20942003,4682.8,4682.7,0.00080001]
[1755182941725,12.54390212,4682.8,4682.7,3.76980001]
[1755182942370,7.18452003,4682.8,4682.7,3.76980001]
[1755182942581,10.64152003,4682.8,4682.7,0.00080001]
[1755182942736,11.0103745,4682.8,4682.7,0.00080001]
[1755182942933,10.4424745,4682.8,4682.7,0.00080001]
[1755182943441,11.0103745,4682.8,4682.7,0.00080001]
[1755182943646,12.32495073,4682.8,4682.7,3.76880001]
[1755182944164,12.32495073,4682.8,4682.7,0.00080001]
[1755182944964,7.3,4682.8,4682.7,0.00080001]
[1755182945150,7.3,4682.8,4682.7,3.76780001]
[1755182945359,9.4354745,4682.8,4682.7,3.76780001]
[1755182945558,7.85,4682.8,4682.7,3.76780001]
[1755182946073,0.459,4684.4,4682.7,4.22960001]
[1755182946258,0.459,4684.4,4683.0,2.13537528]
[1755182946572,0.459,4684.4,4683.0,0.0008]
[1755182946573,0.002,4684.4,4683.0,0.0008]
[1755182946974,0.002,4684.4,4682.8,2.55842676]
[1755182947270,0.61553449,4684.3,4682.7,1.03250001]
[1755182947567,0.002,4684.4,4682.9,3.765]
[1755182947940,0.002,4684.4,4683.0,1.0325]
[1755182948143,0.002,4684.4,4683.1,1.0325]
[1755182948337,0.002,4684.4,4683.7,2.13505668]
[1755182948534,0.002,4684.4,4683.8,3.764]
[1755182949473,0.002,4683.9,4683.8,3.764]
[1755182949673,0.002,4683.9,4683.8,4.7965]
[1755182949967,0.002,4683.9,4683.8,4.7955]
[1755182950269,0.002,4683.9,4683.8,3.763]
[1755182950567,0.002,4683.9,4683.6,2.13510806]
[1755182950568,0.002,4683.9,4683.7,3.763]
[1755182950864,0.002,4683.9,4682.7,0.57070001]
[1755182950865,0.55,4683.8,4682.7,2.13551269]
[1755182951064,0.1064,4683.6,4683.0,0.1064]
[1755182951469,0.55,4683.5,4683.1,3.762]
[1755182951853,0.1064,4683.3,4683.2,3.762]
[1755182952077,0.1064,4683.3,4682.8,2.1354688]
[1755182952280,0.1064,4683.3,4683.2,3.761]
[1755182952454,0.1064,4683.7,4683.4,2.13519838]
[1755182952654,0.002,4683.9,4683.5,3.16761139]
[1755182952980,0.002,4683.9,4683.6,3.16757423]
[1755182953182,0.002,4683.9,4683.8,2.13501857]
[1755182953381,0.002,4684.7,4684.3,2.13479068]
[1755182953565,0.002,4684.7,4684.4,2.13474511]
[1755182953764,0.002,4684.7,4684.6,0.1064]
[1755182953968,0.002,4684.7,4684.6,3.27355397]
[1755182954167,0.002,4684.7,4684.6,6.57175397]
[1755182954492,0.002,4684.7,4684.6,6.00105397]
[1755182954701,0.002,4684.7,4684.6,7.88883038]
[1755182955677,0.002,4686.2,4684.6,4.88877641]
[1755182955880,0.002,4686.2,4686.1,2.13397067]